[Event "Late-Titled-Tuesday-Blitz-May-28-2024"]
[Site "Chess.com"]
[Date "2024.05.28"]
[Round "1"]
[White "Felix-Rose"]
[Black "tactic"]
[Result "0-1"]
[WhiteElo "2275"]
[BlackElo "2595"]
[TimeControl "180+1"]
[EndTime "14:04:16 PDT"]
[Termination "tactic won by resignation"]

1. e4 {[%clk 0:03:00.2]} 1... c5 {[%clk 0:02:46.8]} 2. Nf3 {[%clk 0:03:00.1]}
2... d6 {[%clk 0:02:45.7]} 3. d4 {[%clk 0:03:00]} 3... cxd4 {[%clk 0:02:46.6]}
4. Nxd4 {[%clk 0:03:00.5]} 4... g6 {[%clk 0:02:43.3]} 5. Nc3 {[%clk 0:03:00.5]}
5... Bg7 {[%clk 0:02:43.8]} 6. Be3 {[%clk 0:02:59.7]} 6... Nf6 {[%clk
0:02:43.9]} 7. f3 {[%clk 0:02:59.4]} 7... O-O {[%clk 0:02:41.2]} 8. Qd2 {[%clk
0:02:59.6]} 8... Nc6 {[%clk 0:02:40.4]} 9. O-O-O {[%clk 0:02:59.7]} 9... Nd7
{[%clk 0:02:39.4]} 10. h4 {[%clk 0:02:55.6]} 10... h5 {[%clk 0:02:32.9]} 11. g4
{[%clk 0:02:54.7]} 11... hxg4 {[%clk 0:02:29.3]} 12. h5 {[%clk 0:02:49]} 12...
Nxd4 {[%clk 0:02:27.8]} 13. Bxd4 {[%clk 0:02:48.7]} 13... Bxd4 {[%clk
0:02:28.1]} 14. Qxd4 {[%clk 0:02:48.2]} 14... g5 {[%clk 0:02:20.8]} 15. h6
{[%clk 0:02:40.8]} 15... Ne5 {[%clk 0:02:21.1]} 16. Rh5 {[%clk 0:02:20.7]} 16...
f6 {[%clk 0:02:18.9]} 17. h7+ {[%clk 0:02:04.3]} 17... Kh8 {[%clk 0:02:18.8]}
18. Nd5 {[%clk 0:01:44.8]} 18... gxf3 {[%clk 0:02:18.8]} 19. Bd3 {[%clk
0:01:37.4]} 19... Be6 {[%clk 0:02:17.4]} 20. Ne3 {[%clk 0:01:30.3]} 20... Qb6
{[%clk 0:02:13.5]} 21. Qxb6 {[%clk 0:01:17.6]} 21... axb6 {[%clk 0:02:14.4]} 22.
a3 {[%clk 0:01:18.2]} 22... g4 {[%clk 0:02:08.2]} 23. Nf5 {[%clk 0:01:14.6]}
23... Bxf5 {[%clk 0:02:08]} 24. exf5 {[%clk 0:01:14.6]} 24... g3 {[%clk
0:02:06.2]} 25. Be4 {[%clk 0:01:14]} 25... Ra4 {[%clk 0:02:02.8]} 26. Bd5 {[%clk
0:01:13.3]} 26... Rg4 {[%clk 0:01:58.2]} 27. Rh3 {[%clk 0:01:02.7]} 27... g2
{[%clk 0:01:57.8]} 0-1

[Event "Late-Titled-Tuesday-Blitz-May-28-2024"]
[Site "Chess.com"]
[Date "2024.05.28"]
[Round "1"]
[White "Arteler"]
[Black "YurasovMat-2012"]
[Result "0-1"]
[WhiteElo "2263"]
[BlackElo "2587"]
[TimeControl "180+1"]
[EndTime "14:04:28 PDT"]
[Termination "YurasovMat-2012 won by resignation"]

1. d4 {[%clk 0:02:53.3]} 1... d5 {[%clk 0:02:57.3]} 2. c4 {[%clk 0:02:53.3]}
2... c6 {[%clk 0:02:57.8]} 3. Nc3 {[%clk 0:02:53.4]} 3... Nf6 {[%clk 0:02:57.5]}
4. Nf3 {[%clk 0:02:53.4]} 4... dxc4 {[%clk 0:02:57.1]} 5. a4 {[%clk 0:02:51.6]}
5... Bf5 {[%clk 0:02:56]} 6. e3 {[%clk 0:02:42.2]} 6... Na6 {[%clk 0:02:54]} 7.
Nh4 {[%clk 0:02:31]} 7... e6 {[%clk 0:02:42.8]} 8. Nxf5 {[%clk 0:02:30.3]} 8...
exf5 {[%clk 0:02:43.7]} 9. Bxc4 {[%clk 0:02:30.4]} 9... Nb4 {[%clk 0:02:43.3]}
10. Qb3 {[%clk 0:02:16.5]} 10... Qd7 {[%clk 0:02:40.9]} 11. O-O {[%clk
0:02:11.4]} 11... Bd6 {[%clk 0:02:37.9]} 12. Bd2 {[%clk 0:02:03.3]} 12... O-O
{[%clk 0:02:34.8]} 13. Nb5 {[%clk 0:01:31.2]} 13... cxb5 {[%clk 0:02:27.2]} 14.
Bxb5 {[%clk 0:01:30.9]} 14... Nc6 {[%clk 0:02:23.8]} 15. Rac1 {[%clk 0:01:27.4]}
15... a6 {[%clk 0:02:19.2]} 16. d5 {[%clk 0:01:23.8]} 16... axb5 {[%clk
0:02:16.7]} 17. dxc6 {[%clk 0:01:22.1]} 17... bxc6 {[%clk 0:02:17.3]} 18. axb5
{[%clk 0:01:21.7]} 18... cxb5 {[%clk 0:02:17.2]} 19. Rfd1 {[%clk 0:01:20.4]}
19... Ne4 {[%clk 0:02:16.1]} 20. Bb4 {[%clk 0:01:17.2]} 20... Qe7 {[%clk
0:02:12.9]} 21. Bxd6 {[%clk 0:01:12.5]} 21... Nxd6 {[%clk 0:02:13.8]} 22. Qb4
{[%clk 0:01:12.1]} 22... Rfd8 {[%clk 0:02:12.4]} 23. Rc6 {[%clk 0:01:07.1]}
23... Ne4 {[%clk 0:02:10.8]} 24. Rxd8+ {[%clk 0:00:58.4]} 24... Qxd8 {[%clk
0:02:09.5]} 25. h3 {[%clk 0:00:56.3]} 25... Qd1+ {[%clk 0:02:02.9]} 26. Kh2
{[%clk 0:00:55.7]} 26... Qd5 {[%clk 0:01:59.4]} 27. Rc7 {[%clk 0:00:50.2]} 27...
Qe5+ {[%clk 0:01:58.6]} 0-1

[Event "Late-Titled-Tuesday-Blitz-May-28-2024"]
[Site "Chess.com"]
[Date "2024.05.28"]
[Round "1"]
[White "oogee"]
[Black "Galileo22"]
[Result "0-1"]
[WhiteElo "2359"]
[BlackElo "2650"]
[TimeControl "180+1"]
[EndTime "14:04:34 PDT"]
[Termination "Galileo22 won by resignation"]

1. Nf3 {[%clk 0:02:47]} 1... c5 {[%clk 0:02:56.8]} 2. e4 {[%clk 0:02:46.1]} 2...
Nc6 {[%clk 0:02:56.7]} 3. d4 {[%clk 0:02:46.4]} 3... cxd4 {[%clk 0:02:57.6]} 4.
Nxd4 {[%clk 0:02:46.4]} 4... Nf6 {[%clk 0:02:57.3]} 5. Nc3 {[%clk 0:02:46.1]}
5... e5 {[%clk 0:02:57.4]} 6. Ndb5 {[%clk 0:02:45.4]} 6... d6 {[%clk 0:02:57.2]}
7. Bg5 {[%clk 0:02:43.8]} 7... a6 {[%clk 0:02:57.3]} 8. Na3 {[%clk 0:02:44]}
8... b5 {[%clk 0:02:57.3]} 9. Nd5 {[%clk 0:02:43.4]} 9... Be7 {[%clk 0:02:57.7]}
10. Bxf6 {[%clk 0:02:42.2]} 10... Bxf6 {[%clk 0:02:53.9]} 11. c3 {[%clk
0:02:42.4]} 11... Ne7 {[%clk 0:02:45.2]} 12. Nxf6+ {[%clk 0:02:38.4]} 12... gxf6
{[%clk 0:02:46.1]} 13. Nc2 {[%clk 0:02:37.3]} 13... Bb7 {[%clk 0:02:42.8]} 14.
Bd3 {[%clk 0:02:33]} 14... Rg8 {[%clk 0:02:36.3]} 15. O-O {[%clk 0:02:31.4]}
15... f5 {[%clk 0:02:36.2]} 16. f3 {[%clk 0:02:31.1]} 16... Qb6+ {[%clk
0:02:33.9]} 17. Kh1 {[%clk 0:02:30.6]} 17... f4 {[%clk 0:02:33.5]} 18. a4 {[%clk
0:02:24.4]} 18... Rd8 {[%clk 0:02:28]} 19. axb5 {[%clk 0:02:23.1]} 19... axb5
{[%clk 0:02:28.9]} 20. Nb4 {[%clk 0:02:23.4]} 20... d5 {[%clk 0:02:06]} 21. Qe2
{[%clk 0:02:21.4]} 21... Kf8 {[%clk 0:01:57.4]} 22. Bxb5 {[%clk 0:02:19.4]}
22... dxe4 {[%clk 0:01:57.2]} 23. fxe4 {[%clk 0:02:18.7]} 23... Nf5 {[%clk
0:01:46.3]} 24. Bc4 {[%clk 0:02:00.9]} 24... Ne3 {[%clk 0:01:24.7]} 25. Qh5
{[%clk 0:01:49.6]} 25... Nxc4 {[%clk 0:01:19.9]} 26. Rad1 {[%clk 0:01:25.1]}
26... Bxe4 {[%clk 0:01:14.4]} 0-1

[Event "Late-Titled-Tuesday-Blitz-May-28-2024"]
[Site "Chess.com"]
[Date "2024.05.28"]
[Round "1"]
[White "JonasGallasch"]
[Black "GianmarcoVaR"]
[Result "0-1"]
[WhiteElo "2406"]
[BlackElo "2707"]
[TimeControl "180+1"]
[EndTime "14:04:35 PDT"]
[Termination "GianmarcoVaR won by resignation"]

1. d4 {[%clk 0:02:59.8]} 1... Nf6 {[%clk 0:02:55.7]} 2. c4 {[%clk 0:02:59.9]}
2... e6 {[%clk 0:02:56]} 3. g3 {[%clk 0:02:59.3]} 3... Bb4+ {[%clk 0:02:55.1]}
4. Nd2 {[%clk 0:02:59.2]} 4... O-O {[%clk 0:02:53.3]} 5. Bg2 {[%clk 0:02:58.8]}
5... d6 {[%clk 0:02:42.8]} 6. Nf3 {[%clk 0:02:57.7]} 6... Nc6 {[%clk 0:02:39.9]}
7. O-O {[%clk 0:02:56.9]} 7... Bxd2 {[%clk 0:02:36.6]} 8. Qxd2 {[%clk
0:02:53.1]} 8... e5 {[%clk 0:02:36.1]} 9. b3 {[%clk 0:02:43]} 9... Qe7 {[%clk
0:02:26.6]} 10. Bb2 {[%clk 0:02:38.2]} 10... Re8 {[%clk 0:02:26.3]} 11. e3
{[%clk 0:01:57.4]} 11... Bf5 {[%clk 0:02:25.6]} 12. Nh4 {[%clk 0:01:54.5]} 12...
Bd7 {[%clk 0:02:24.3]} 13. Qc2 {[%clk 0:01:48.6]} 13... e4 {[%clk 0:02:23.1]}
14. d5 {[%clk 0:01:34.2]} 14... Nb4 {[%clk 0:02:22.3]} 15. Qc3 {[%clk 0:01:32]}
15... Nd3 {[%clk 0:02:21.1]} 16. Bh1 {[%clk 0:01:26.4]} 16... Nxb2 {[%clk
0:02:13.3]} 17. Qxb2 {[%clk 0:01:27.3]} 17... Ng4 {[%clk 0:02:12.6]} 18. Rae1
{[%clk 0:01:18.4]} 18... Qg5 {[%clk 0:02:10]} 19. h3 {[%clk 0:01:15.4]} 19...
Ne5 {[%clk 0:02:07.3]} 20. Rd1 {[%clk 0:00:57.1]} 20... Bxh3 {[%clk 0:02:06]}
21. Rfe1 {[%clk 0:00:54.9]} 21... f5 {[%clk 0:02:03.5]} 22. Rd4 {[%clk
0:00:37.1]} 22... Qh6 {[%clk 0:02:01.3]} 23. b4 {[%clk 0:00:26.7]} 23... g5
{[%clk 0:02:01.3]} 0-1

[Event "Late-Titled-Tuesday-Blitz-May-28-2024"]
[Site "Chess.com"]
[Date "2024.05.28"]
[Round "1"]
[White "AryanTari"]
[Black "SuanTiltado"]
[Result "1-0"]
[WhiteElo "3030"]
[BlackElo "2524"]
[TimeControl "180+1"]
[EndTime "14:04:37 PDT"]
[Termination "AryanTari won by resignation"]

1. c4 {[%clk 0:02:59.5]} 1... e6 {[%clk 0:02:46.1]} 2. g3 {[%clk 0:02:58]} 2...
d5 {[%clk 0:02:46.3]} 3. Bg2 {[%clk 0:02:58.6]} 3... Nf6 {[%clk 0:02:46.9]} 4.
Nf3 {[%clk 0:02:57.6]} 4... c5 {[%clk 0:02:45.4]} 5. cxd5 {[%clk 0:02:56.3]}
5... Nxd5 {[%clk 0:02:40.6]} 6. O-O {[%clk 0:02:55.6]} 6... Nc6 {[%clk
0:02:38.8]} 7. d4 {[%clk 0:02:55.1]} 7... Nf6 {[%clk 0:02:34.5]} 8. dxc5 {[%clk
0:02:51.1]} 8... Qxd1 {[%clk 0:02:34.7]} 9. Rxd1 {[%clk 0:02:50.5]} 9... Bxc5
{[%clk 0:02:35.4]} 10. Nc3 {[%clk 0:02:49.1]} 10... O-O {[%clk 0:02:34.1]} 11.
Bf4 {[%clk 0:02:45.9]} 11... Ng4 {[%clk 0:02:15.6]} 12. Ne4 {[%clk 0:02:44.3]}
12... Be7 {[%clk 0:02:10.4]} 13. Bd6 {[%clk 0:02:33.4]} 13... Bxd6 {[%clk
0:01:58.2]} 14. Nxd6 {[%clk 0:02:34.3]} 14... Rd8 {[%clk 0:01:55.2]} 15. Rd2
{[%clk 0:02:20]} 15... Kf8 {[%clk 0:01:46]} 16. Rad1 {[%clk 0:02:19.1]} 16...
Ke7 {[%clk 0:01:44.5]} 17. h3 {[%clk 0:01:55.2]} 17... Nf6 {[%clk 0:01:42.7]}
18. Ng5 {[%clk 0:01:54.6]} 18... Ne5 {[%clk 0:01:13.2]} 19. Nf5+ {[%clk
0:01:49]} 19... exf5 {[%clk 0:01:12.9]} 20. Rxd8 {[%clk 0:01:49.9]} 20... h6
{[%clk 0:01:12.5]} 21. Nf3 {[%clk 0:01:47.6]} 21... Ned7 {[%clk 0:01:06.5]} 22.
Rh8 {[%clk 0:01:44.1]} 22... Nf8 {[%clk 0:00:59.3]} 23. Ne5 {[%clk 0:01:38.2]}
23... Be6 {[%clk 0:00:56.5]} 24. Bxb7 {[%clk 0:01:37.1]} 24... Rb8 {[%clk
0:00:55.8]} 25. Nc6+ {[%clk 0:01:37.2]} 1-0

[Event "Late-Titled-Tuesday-Blitz-May-28-2024"]
[Site "Chess.com"]
[Date "2024.05.28"]
[Round "1"]
[White "Let_it_be_1"]
[Black "LUISMIGUELOV"]
[Result "1-0"]
[WhiteElo "2577"]
[BlackElo "2241"]
[TimeControl "180+1"]
[EndTime "14:04:45 PDT"]
[Termination "Let_it_be_1 won by resignation"]

1. e4 {[%clk 0:02:57.5]} 1... c6 {[%clk 0:03:00]} 2. d4 {[%clk 0:02:55.7]} 2...
d5 {[%clk 0:03:00.3]} 3. Nd2 {[%clk 0:02:56.3]} 3... dxe4 {[%clk 0:02:59.4]} 4.
Nxe4 {[%clk 0:02:57.2]} 4... Bf5 {[%clk 0:02:59.3]} 5. Ng3 {[%clk 0:02:57]} 5...
Bg6 {[%clk 0:02:59.8]} 6. N1e2 {[%clk 0:02:57.2]} 6... Nd7 {[%clk 0:02:58.1]} 7.
c3 {[%clk 0:02:56.8]} 7... e6 {[%clk 0:02:53.6]} 8. Nf4 {[%clk 0:02:56.5]} 8...
Bd6 {[%clk 0:02:52.7]} 9. Ngh5 {[%clk 0:02:56.3]} 9... Ngf6 {[%clk 0:02:48.1]}
10. Nxg7+ {[%clk 0:02:55.7]} 10... Ke7 {[%clk 0:02:39.2]} 11. Ngh5 {[%clk
0:02:49.4]} 11... Qc7 {[%clk 0:02:27.5]} 12. g3 {[%clk 0:02:37.7]} 12... Rae8
{[%clk 0:02:18.6]} 13. Nxf6 {[%clk 0:02:30.7]} 13... Nxf6 {[%clk 0:02:17.5]} 14.
Bg2 {[%clk 0:02:25.5]} 14... Kd8 {[%clk 0:02:16.5]} 15. O-O {[%clk 0:02:24.2]}
15... Rhg8 {[%clk 0:02:14.1]} 16. Nxg6 {[%clk 0:02:20.8]} 16... Rxg6 {[%clk
0:02:13.1]} 17. Qf3 {[%clk 0:02:11.7]} 17... Kc8 {[%clk 0:02:02.1]} 18. c4
{[%clk 0:02:10.7]} 18... h5 {[%clk 0:01:43.3]} 19. c5 {[%clk 0:01:57.8]} 19...
Bf8 {[%clk 0:01:35.8]} 20. Bf4 {[%clk 0:01:56.5]} 20... Qd7 {[%clk 0:01:30.3]}
21. Be5 {[%clk 0:01:52.6]} 21... Ng4 {[%clk 0:01:26.2]} 22. Rfd1 {[%clk
0:01:44.9]} 22... Nxe5 {[%clk 0:01:25.4]} 23. dxe5 {[%clk 0:01:44.9]} 23... Qc7
{[%clk 0:01:25.8]} 24. b4 {[%clk 0:01:37.8]} 24... Qxe5 {[%clk 0:01:21]} 25.
Qxf7 {[%clk 0:01:37.3]} 1-0

[Event "Late-Titled-Tuesday-Blitz-May-28-2024"]
[Site "Chess.com"]
[Date "2024.05.28"]
[Round "1"]
[White "marianokar"]
[Black "Zorbos"]
[Result "0-1"]
[WhiteElo "2413"]
[BlackElo "2722"]
[TimeControl "180+1"]
[EndTime "14:05:00 PDT"]
[Termination "Zorbos won by resignation"]

1. e4 {[%clk 0:02:55.7]} 1... e5 {[%clk 0:02:59.9]} 2. Nf3 {[%clk 0:02:47.7]}
2... Nc6 {[%clk 0:02:59.8]} 3. Bb5 {[%clk 0:02:46.9]} 3... f5 {[%clk 0:02:59.2]}
4. Nc3 {[%clk 0:02:44.4]} 4... fxe4 {[%clk 0:02:58.8]} 5. Nxe4 {[%clk
0:02:45.3]} 5... d5 {[%clk 0:02:59.2]} 6. Nxe5 {[%clk 0:02:44.4]} 6... dxe4
{[%clk 0:02:59.7]} 7. Nxc6 {[%clk 0:02:36.9]} 7... Qg5 {[%clk 0:03:00]} 8. Ne5+
{[%clk 0:02:26.4]} 8... c6 {[%clk 0:02:54.7]} 9. d4 {[%clk 0:02:26.6]} 9... Qxg2
{[%clk 0:02:51.7]} 10. Bf1 {[%clk 0:01:52.3]} 10... Qxh1 {[%clk 0:02:42.5]} 11.
Qh5+ {[%clk 0:01:52.8]} 11... g6 {[%clk 0:02:43.2]} 12. Nxg6 {[%clk 0:01:52.2]}
12... hxg6 {[%clk 0:02:39.5]} 13. Qxh8 {[%clk 0:01:51.6]} 13... Kf7 {[%clk
0:02:28]} 14. Bg5 {[%clk 0:01:27.5]} 14... Bg4 {[%clk 0:02:17.9]} 15. Kd2 {[%clk
0:01:22.3]} 15... Be6 {[%clk 0:01:59.8]} 16. Bc4 {[%clk 0:00:54]} 16... Qxa1
{[%clk 0:01:47.4]} 17. Bxe6+ {[%clk 0:00:53.5]} 17... Kxe6 {[%clk 0:01:48.3]}
18. Qxg8+ {[%clk 0:00:53.6]} 18... Kf5 {[%clk 0:01:48.9]} 19. Qh7 {[%clk
0:00:10.4]} 19... Bb4+ {[%clk 0:01:46.2]} 0-1

[Event "Late-Titled-Tuesday-Blitz-May-28-2024"]
[Site "Chess.com"]
[Date "2024.05.28"]
[Round "1"]
[White "alexrustemov"]
[Black "Supelyel"]
[Result "1-0"]
[WhiteElo "2847"]
[BlackElo "2462"]
[TimeControl "180+1"]
[EndTime "14:05:02 PDT"]
[Termination "alexrustemov won by resignation"]

1. d4 {[%clk 0:03:00.9]} 1... d6 {[%clk 0:02:58.2]} 2. e4 {[%clk 0:02:59.8]}
2... Nf6 {[%clk 0:02:54.5]} 3. f3 {[%clk 0:02:58.9]} 3... e5 {[%clk 0:02:54.1]}
4. Ne2 {[%clk 0:02:59.1]} 4... Be7 {[%clk 0:02:53.5]} 5. c4 {[%clk 0:02:58.7]}
5... O-O {[%clk 0:02:53.4]} 6. Nbc3 {[%clk 0:02:59.2]} 6... Nbd7 {[%clk
0:02:53]} 7. Be3 {[%clk 0:02:59.6]} 7... c6 {[%clk 0:02:53]} 8. Qd2 {[%clk
0:02:56.3]} 8... a6 {[%clk 0:02:53]} 9. d5 {[%clk 0:02:55.6]} 9... cxd5 {[%clk
0:02:52.2]} 10. cxd5 {[%clk 0:02:56.3]} 10... b5 {[%clk 0:02:52.6]} 11. Ng3
{[%clk 0:02:54.7]} 11... Nb6 {[%clk 0:02:52.3]} 12. b3 {[%clk 0:02:44]} 12...
Bd7 {[%clk 0:02:43.9]} 13. Be2 {[%clk 0:02:44.2]} 13... Qb8 {[%clk 0:02:18.6]}
14. O-O {[%clk 0:02:44.1]} 14... Re8 {[%clk 0:02:17.8]} 15. Rfc1 {[%clk
0:02:44.4]} 15... Bd8 {[%clk 0:02:16.9]} 16. a4 {[%clk 0:02:36.1]} 16... b4
{[%clk 0:02:13.6]} 17. Nd1 {[%clk 0:02:35.6]} 17... a5 {[%clk 0:02:10.8]} 18.
Nb2 {[%clk 0:02:35.9]} 18... Qb7 {[%clk 0:01:48.2]} 19. Rc2 {[%clk 0:02:33.5]}
19... Rc8 {[%clk 0:01:35.2]} 20. Rac1 {[%clk 0:02:33.8]} 20... Rxc2 {[%clk
0:01:35.2]} 21. Qxc2 {[%clk 0:02:32.7]} 21... g6 {[%clk 0:01:26.7]} 22. Bb5
{[%clk 0:02:31.6]} 22... h5 {[%clk 0:01:22.3]} 23. Bxd7 {[%clk 0:02:30.3]} 23...
Nfxd7 {[%clk 0:01:22.2]} 24. Qc6 {[%clk 0:02:30.7]} 24... Qb8 {[%clk 0:01:15.6]}
25. Nf1 {[%clk 0:02:22.9]} 25... Be7 {[%clk 0:00:58.6]} 26. Qb5 {[%clk
0:02:20.7]} 26... Qa7 {[%clk 0:00:46.9]} 27. Rc6 {[%clk 0:02:19.7]} 27... Rb8
{[%clk 0:00:45.2]} 28. Nc4 {[%clk 0:02:20.2]} 28... Bd8 {[%clk 0:00:35.6]} 29.
Nxd6 {[%clk 0:02:13]} 29... Qa8 {[%clk 0:00:29]} 30. Qd3 {[%clk 0:02:06.9]}
30... Be7 {[%clk 0:00:20.4]} 31. Nc4 {[%clk 0:02:03.3]} 31... Nxc4 {[%clk
0:00:20.6]} 32. Qxc4 {[%clk 0:02:03.2]} 32... Qb7 {[%clk 0:00:16.7]} 33. Rc7
{[%clk 0:02:02.4]} 1-0

[Event "Late-Titled-Tuesday-Blitz-May-28-2024"]
[Site "Chess.com"]
[Date "2024.05.28"]
[Round "1"]
[White "m_ezat"]
[Black "larsmandreassen"]
[Result "1-0"]
[WhiteElo "2576"]
[BlackElo "2231"]
[TimeControl "180+1"]
[EndTime "14:05:03 PDT"]
[Termination "m_ezat won by resignation"]

1. d4 {[%clk 0:02:58.2]} 1... d5 {[%clk 0:02:58.5]} 2. c4 {[%clk 0:02:57.4]}
2... e6 {[%clk 0:02:58.5]} 3. Nc3 {[%clk 0:02:57.3]} 3... c5 {[%clk 0:02:58.9]}
4. cxd5 {[%clk 0:02:57.2]} 4... cxd4 {[%clk 0:02:59.1]} 5. Qxd4 {[%clk
0:02:56.7]} 5... Nc6 {[%clk 0:02:58.6]} 6. Qd1 {[%clk 0:02:57.1]} 6... exd5
{[%clk 0:02:59.1]} 7. Qxd5 {[%clk 0:02:56.9]} 7... Bd7 {[%clk 0:02:59.2]} 8. Nf3
{[%clk 0:02:55.8]} 8... Nf6 {[%clk 0:02:59.9]} 9. Qd1 {[%clk 0:02:56.1]} 9...
Bc5 {[%clk 0:02:58.4]} 10. e3 {[%clk 0:02:55.7]} 10... Qe7 {[%clk 0:02:58.4]}
11. Be2 {[%clk 0:02:55.3]} 11... Rg8 {[%clk 0:02:58]} 12. O-O {[%clk 0:02:54]}
12... g5 {[%clk 0:02:58.1]} 13. Nd4 {[%clk 0:02:53.5]} 13... O-O-O {[%clk
0:02:52.1]} 14. b4 {[%clk 0:02:51.6]} 14... Bxb4 {[%clk 0:02:48.2]} 15. Qb3
{[%clk 0:02:41.6]} 15... Nxd4 {[%clk 0:02:34.1]} 16. exd4 {[%clk 0:02:39.3]}
16... Kb8 {[%clk 0:02:34.5]} 17. Bc4 {[%clk 0:02:28.7]} 17... Bxc3 {[%clk
0:02:15]} 18. Qxc3 {[%clk 0:02:28.3]} 18... Rc8 {[%clk 0:02:12.3]} 19. Qb3
{[%clk 0:02:24.4]} 19... Rg7 {[%clk 0:02:04.5]} 20. Ba3 {[%clk 0:02:19.6]} 20...
Qe4 {[%clk 0:01:53.1]} 21. Bd6+ {[%clk 0:02:11.6]} 21... Ka8 {[%clk 0:01:52.3]}
22. Be5 {[%clk 0:02:11.5]} 22... Bc6 {[%clk 0:00:58.8]} 23. f3 {[%clk
0:02:02.9]} 23... Qf5 {[%clk 0:00:57.9]} 24. Bd3 {[%clk 0:01:52.2]} 1-0

[Event "Late-Titled-Tuesday-Blitz-May-28-2024"]
[Site "Chess.com"]
[Date "2024.05.28"]
[Round "1"]
[White "NMJeevanK"]
[Black "pirulillo"]
[Result "1-0"]
[WhiteElo "2678"]
[BlackElo "2396"]
[TimeControl "180+1"]
[EndTime "14:05:05 PDT"]
[Termination "NMJeevanK won by resignation"]

1. e4 {[%clk 0:02:50.5]} 1... c5 {[%clk 0:02:55.7]} 2. Nf3 {[%clk 0:02:49.7]}
2... e6 {[%clk 0:02:56.1]} 3. Nc3 {[%clk 0:02:49.5]} 3... Nc6 {[%clk 0:02:55.7]}
4. Bb5 {[%clk 0:02:49.4]} 4... Nd4 {[%clk 0:02:55.4]} 5. O-O {[%clk 0:02:46.9]}
5... Nxb5 {[%clk 0:02:52.7]} 6. Nxb5 {[%clk 0:02:46.9]} 6... a6 {[%clk
0:02:53.6]} 7. Nc3 {[%clk 0:02:46.5]} 7... Qc7 {[%clk 0:02:51.3]} 8. d4 {[%clk
0:02:46.5]} 8... cxd4 {[%clk 0:02:51.1]} 9. Qxd4 {[%clk 0:02:46.7]} 9... d6
{[%clk 0:02:35.7]} 10. Rd1 {[%clk 0:02:42.6]} 10... Nf6 {[%clk 0:02:29.6]} 11.
Bg5 {[%clk 0:02:38.4]} 11... Be7 {[%clk 0:02:29.4]} 12. e5 {[%clk 0:02:32.1]}
12... dxe5 {[%clk 0:02:23.3]} 13. Nxe5 {[%clk 0:02:33]} 13... O-O {[%clk
0:02:21.9]} 14. Bf4 {[%clk 0:02:23.1]} 14... Qc5 {[%clk 0:02:15.9]} 15. Qd3
{[%clk 0:02:12.5]} 15... Rd8 {[%clk 0:01:55.5]} 16. Qxd8+ {[%clk 0:02:09.5]}
16... Bxd8 {[%clk 0:01:56.4]} 17. Rxd8+ {[%clk 0:02:09.4]} 17... Qf8 {[%clk
0:01:57.3]} 18. Rxf8+ {[%clk 0:02:07]} 18... Kxf8 {[%clk 0:01:58.2]} 19. Rd1
{[%clk 0:02:05.9]} 19... Ke8 {[%clk 0:01:56.5]} 20. g4 {[%clk 0:02:04.8]} 20...
Nd7 {[%clk 0:01:54.1]} 21. g5 {[%clk 0:02:03.7]} 21... f6 {[%clk 0:01:52.1]} 22.
Nxd7 {[%clk 0:02:03.3]} 22... Bxd7 {[%clk 0:01:50.2]} 23. gxf6 {[%clk 0:02:04]}
23... gxf6 {[%clk 0:01:50]} 24. Ne4 {[%clk 0:02:04.7]} 24... Bc6 {[%clk
0:01:43.2]} 25. Nxf6+ {[%clk 0:02:01.7]} 25... Kf7 {[%clk 0:01:42.8]} 26. Nxh7
{[%clk 0:01:54.8]} 26... e5 {[%clk 0:01:38.2]} 27. Ng5+ {[%clk 0:01:50.6]} 27...
Kf6 {[%clk 0:01:37.8]} 28. Be3 {[%clk 0:01:50.9]} 28... Rg8 {[%clk 0:01:35.1]}
29. h4 {[%clk 0:01:50.7]} 29... Rh8 {[%clk 0:01:34.6]} 30. Kh2 {[%clk
0:01:32.8]} 30... Rxh4+ {[%clk 0:01:32]} 31. Kg3 {[%clk 0:01:33.5]} 31... Ra4
{[%clk 0:01:26.9]} 32. a3 {[%clk 0:01:29.4]} 32... Kf5 {[%clk 0:01:27.2]} 33. f3
{[%clk 0:01:22.3]} 33... Rf4 {[%clk 0:01:21.2]} 34. Bxf4 {[%clk 0:01:19.6]}
34... exf4+ {[%clk 0:01:22.1]} 35. Kh4 {[%clk 0:01:19.8]} 1-0

[Event "Late-Titled-Tuesday-Blitz-May-28-2024"]
[Site "Chess.com"]
[Date "2024.05.28"]
[Round "1"]
[White "becemix"]
[Black "YellowJacek"]
[Result "0-1"]
[WhiteElo "2618"]
[BlackElo "2367"]
[TimeControl "180+1"]
[EndTime "14:05:05 PDT"]
[Termination "YellowJacek won by resignation"]

1. e4 {[%clk 0:02:53.7]} 1... c5 {[%clk 0:02:59.6]} 2. c3 {[%clk 0:02:52.9]}
2... d5 {[%clk 0:02:59.3]} 3. exd5 {[%clk 0:02:53.8]} 3... Nf6 {[%clk
0:02:59.7]} 4. d4 {[%clk 0:02:53]} 4... cxd4 {[%clk 0:02:51.3]} 5. cxd4 {[%clk
0:02:53.9]} 5... Nxd5 {[%clk 0:02:50.1]} 6. Nc3 {[%clk 0:02:54.3]} 6... Nxc3
{[%clk 0:02:50.2]} 7. bxc3 {[%clk 0:02:55.2]} 7... Qc7 {[%clk 0:02:50.6]} 8. Bd2
{[%clk 0:02:53.8]} 8... Bf5 {[%clk 0:02:45.9]} 9. Qf3 {[%clk 0:02:42]} 9... e6
{[%clk 0:02:39.7]} 10. Bb5+ {[%clk 0:02:33]} 10... Nd7 {[%clk 0:02:39]} 11. Ne2
{[%clk 0:02:33.2]} 11... Bd6 {[%clk 0:02:33.2]} 12. Ng3 {[%clk 0:02:18.4]} 12...
Bg6 {[%clk 0:02:23.9]} 13. Ne4 {[%clk 0:02:14.5]} 13... Bxe4 {[%clk 0:02:08.9]}
14. Qxe4 {[%clk 0:02:15.4]} 14... O-O {[%clk 0:02:04.8]} 15. Bd3 {[%clk
0:02:11.8]} 15... Nf6 {[%clk 0:01:55.1]} 16. Qh4 {[%clk 0:02:12.1]} 16... Be7
{[%clk 0:01:39.8]} 17. O-O {[%clk 0:02:08.5]} 17... g6 {[%clk 0:01:36.7]} 18.
Qh3 {[%clk 0:02:03.3]} 18... a6 {[%clk 0:01:31]} 19. a4 {[%clk 0:01:41.8]} 19...
Nd5 {[%clk 0:01:30.6]} 20. Be4 {[%clk 0:01:36.3]} 20... Rfd8 {[%clk 0:01:22.4]}
21. Rac1 {[%clk 0:01:35.7]} 21... Qc4 {[%clk 0:01:19.5]} 22. Bc2 {[%clk
0:01:21.7]} 22... Rac8 {[%clk 0:01:11.6]} 23. a5 {[%clk 0:01:19.8]} 23... Nxc3
{[%clk 0:01:09.3]} 24. Bxc3 {[%clk 0:01:11.6]} 24... Qxc3 {[%clk 0:01:10.2]} 25.
Bxg6 {[%clk 0:01:11.6]} 25... Qxh3 {[%clk 0:01:08.2]} 0-1